{"text_format":"3","workbook":"xlsx","n_sheets":1,"sheets":["Форма предварительного протокол"],"read":"whole","date_system":"1900"}

{"sheet":"Форма предварительного протокол","index":0,"n_rows":28,"n_cols":14,"rows_kept":28,"merged":[[0,0,0,13]]}
["Предварительный протокол по итогам муниципального этапа ВсОШ/РОШ  по предмету ____экология__________                                                                                                    _______Бавлинского_________муниципального района в 2018-2019 учебном году                                                 \n"]
[]
["№ п/п","Муниципалитет","Полное наименование образовательного учреждения (по уставу)","Фамилия","Имя","Отчество","Класс","Дата рождения","Пол","Балл","Максимальный балл","Статус","Фамилия, имя, отчество педагога, подготовившего участника олимпиады","Полное наименование образовательного учреждения (по уставу)"]
[1,"Бавлинский","МБОУ «Средняя общеобразовательная школа №6» Бавлинского муниципального района РТ","Бердиева","Лучана","Раджевна",7,"2005-04-07","ж",5.5,51,null,"Аблязизова Римма Раисовна","МБОУ «Средняя общеобразовательная школа №6» Бавлинского муниципального района РТ"]
[2,"Бавлинский","Муниципальное бюджетное общеобразовательное учреждение «Средняя общеобразовательная школа №3 имени Ю.А.Гагарина» Бавлинского муниципального района РТ","Шаймарданов","Ансель","Ренатович",7,"2005-05-23","м",4,51,null,"Ахмедова Айгуль Салаватовна",{"$f":"$C$5","v":"Муниципальное бюджетное общеобразовательное учреждение «Средняя общеобразовательная школа №3 имени Ю.А.Гагарина» Бавлинского муниципального района РТ"}]
[3,"Бавлинский","Муниципальное автономное общеобразовательное учреждение средняя общеобразовательная школа №5 Бавлинского муниципального района РТ","Горожанкина","Элина","Александровна",7,"2005-11-25","ж",11.5,51,null,"Аслямова Лейсан Азатовна",{"$f":"$C$6","v":"Муниципальное автономное общеобразовательное учреждение средняя общеобразовательная школа №5 Бавлинского муниципального района РТ"}]
[4,"Бавлинский","Муниципальное бюджетное общеобразовательное учреждение \"Гимназия № 4\" Бавлинского муниципального района РТ","Заирова","Леонора","Джалиловна",7,"2005-11-28","ж",11.5,51,null,"Рамазанова Юлдуз Ильдусовна",{"$f":"$C$7","v":"Муниципальное бюджетное общеобразовательное учреждение \"Гимназия № 4\" Бавлинского муниципального района РТ"}]
[5,"Бавлинский",{"$f":"$C$7","v":"Муниципальное бюджетное общеобразовательное учреждение \"Гимназия № 4\" Бавлинского муниципального района РТ"},"Галимова","Айдан","Маратовна",8,"2004-12-31","ж",10.5,51,null,{"$f":"$M$7","v":"Рамазанова Юлдуз Ильдусовна"},{"$f":"$N$7","v":"Муниципальное бюджетное общеобразовательное учреждение \"Гимназия № 4\" Бавлинского муниципального района РТ"}]
[6,"Бавлинский",{"$f":"$C$5","v":"Муниципальное бюджетное общеобразовательное учреждение «Средняя общеобразовательная школа №3 имени Ю.А.Гагарина» Бавлинского муниципального района РТ"},"Рожкова","Анна","Николаевна",8,"2004-07-17","ж",15,51,null,"Ахмедова Айгуль Салаватовна",{"$f":"$C$5","v":"Муниципальное бюджетное общеобразовательное учреждение «Средняя общеобразовательная школа №3 имени Ю.А.Гагарина» Бавлинского муниципального района РТ"}]
[7,"Бавлинский","Муниципальное бюджетное общеобразовательное учреждение «Александровская средняя общеобразовательная школа» Бавлинского муниципального района РТ ","Юлдошева","Хадижа","Акмалжоновна",8,"2004-09-29","ж","14,.5",51,null,"Гарскова Надежда Петровна",{"$f":"$C$10","v":"Муниципальное бюджетное общеобразовательное учреждение «Александровская средняя общеобразовательная школа» Бавлинского муниципального района РТ "}]
[8,"Бавлинский",{"$f":"$C$4","v":"МБОУ «Средняя общеобразовательная школа №6» Бавлинского муниципального района РТ"},"Самигуллина","Камилла","Ильдаровна",8,"2004-05-20","ж",14,51,null,"Аблязизова Римма Раисовна",{"$f":"$N$4","v":"МБОУ «Средняя общеобразовательная школа №6» Бавлинского муниципального района РТ"}]
[9,"Бавлинский",{"$f":"$C$6","v":"Муниципальное автономное общеобразовательное учреждение средняя общеобразовательная школа №5 Бавлинского муниципального района РТ"},"Идрисова","Екатерина","Романовна",8,"2004-10-19","ж",14.5,51,null,"Аслямова Лейсан Азатовна",{"$f":"$C$6","v":"Муниципальное автономное общеобразовательное учреждение средняя общеобразовательная школа №5 Бавлинского муниципального района РТ"}]
[10,"Бавлинский",{"$f":"$C$11","v":"МБОУ «Средняя общеобразовательная школа №6» Бавлинского муниципального района РТ"},"Хазеева","Алина","Ахметгалиевна",9,"2003-04-30","ж",12,56,null,"Аблязизова Римма Раисовна",{"$f":"$C$11","v":"МБОУ «Средняя общеобразовательная школа №6» Бавлинского муниципального района РТ"}]
[11,"Бавлинский",{"$f":"$C$13","v":"МБОУ «Средняя общеобразовательная школа №6» Бавлинского муниципального района РТ"},"Ганиев","Тимур","Марсович",9,"2003-08-21","м",15,56,null,"Аблязизова Римма Раисовна",{"$f":"$C$13","v":"МБОУ «Средняя общеобразовательная школа №6» Бавлинского муниципального района РТ"}]
[12,"Бавлинский",{"$f":"$C$12","v":"Муниципальное автономное общеобразовательное учреждение средняя общеобразовательная школа №5 Бавлинского муниципального района РТ"},"Зиязиев","Тимур","Венирович",9,"2003-06-13","м",16.5,56,null,"Аслямова Лейсан Азатовна",{"$f":"$C$12","v":"Муниципальное автономное общеобразовательное учреждение средняя общеобразовательная школа №5 Бавлинского муниципального района РТ"}]
[13,"Бавлинский","Муниципальное бюджетное общеобразовательное учреждение «Средняя общеобразовательная школа №2 с углубленным изучением отдельных предметов» Бавлинского муниципального района Республики Татарстан","Ханова","Диляра","Айдаровна",9,"2003-11-05","ж",29,56,"победитель","Жилина Роза Даниловна","Муниципальное бюджетное общеобразовательное учреждение «Средняя общеобразовательная школа №2 с углубленным изучением отдельных предметов» Бавлинского муниципального района Республики Татарстан"]
[14,"Бавлинский",{"$f":"$C$8","v":"Муниципальное бюджетное общеобразовательное учреждение \"Гимназия № 4\" Бавлинского муниципального района РТ"},"Хабипова","Рузанна","Радиковна",9,"2003-02-14","ж",18,56,null,"Рамазанова Юлдуз Ильдусовна",{"$f":"$C$8","v":"Муниципальное бюджетное общеобразовательное учреждение \"Гимназия № 4\" Бавлинского муниципального района РТ"}]
[15,"Бавлинский","Муниципальное бюджетное общеобразовательное учреждение «Средняя общеобразовательная школа №1» Бавлинского муниципального района РТ","Шамсутдинова","Дина","Ильшатовна",9,"2003-10-06","ж",13,56,null,"Вахитова Регина Римовна","Муниципальное бюджетное общеобразовательное учреждение «Средняя общеобразовательная школа №1» Бавлинского муниципального района РТ"]
[16,"Бавлинский",{"$f":"$C$17","v":"Муниципальное бюджетное общеобразовательное учреждение \"Гимназия № 4\" Бавлинского муниципального района РТ"},"Гаязутдинова","Сабина","Сайриновна",10,"2002-01-02","ж",18,62,null,"Рамазанова Юлдуз Ильдусовна",{"$f":"$C$19","v":"Муниципальное бюджетное общеобразовательное учреждение \"Гимназия № 4\" Бавлинского муниципального района РТ"}]
[17,"Бавлинский",{"$f":"$C$14","v":"МБОУ «Средняя общеобразовательная школа №6» Бавлинского муниципального района РТ"},"Зиновьева","Лада","Владиславовна",10,"2002-06-21","ж",43.5,62,"победитель","Аблязизова Римма Раисовна",{"$f":"$C$14","v":"МБОУ «Средняя общеобразовательная школа №6» Бавлинского муниципального района РТ"}]
[18,"Бавлинский",{"$f":"$C$5","v":"Муниципальное бюджетное общеобразовательное учреждение «Средняя общеобразовательная школа №3 имени Ю.А.Гагарина» Бавлинского муниципального района РТ"},"Морозова","Эвелина","Витальевна",10,"2002-06-18","ж",19.5,62,null,"Ахмедова Айгуль Салаватовна",{"$f":"$C$21","v":"Муниципальное бюджетное общеобразовательное учреждение «Средняя общеобразовательная школа №3 имени Ю.А.Гагарина» Бавлинского муниципального района РТ"}]
[19,"Бавлинский",{"$f":"$C$15","v":"Муниципальное автономное общеобразовательное учреждение средняя общеобразовательная школа №5 Бавлинского муниципального района РТ"},"Шафикова","Эльнара","Рустемовна",10,"2002-09-06","ж",19,62,null,"Аслямова Лейсан Азатовна",{"$f":"$C$15","v":"Муниципальное автономное общеобразовательное учреждение средняя общеобразовательная школа №5 Бавлинского муниципального района РТ"}]
[20,"Бавлинский",{"$f":"$C$10","v":"Муниципальное бюджетное общеобразовательное учреждение «Александровская средняя общеобразовательная школа» Бавлинского муниципального района РТ "},"Юлдошева","Мабуба","Акмалжоновна",10,"2002-09-06","ж",16,62,null,"Гарскова Надежда Петровна",{"$f":"$C$10","v":"Муниципальное бюджетное общеобразовательное учреждение «Александровская средняя общеобразовательная школа» Бавлинского муниципального района РТ "}]
[21,"Бавлинский","МБОУ «Средняя общеобразовательная школа №7» Бавлинского муниципального района РТ","Абдуллин","Нияз","Айдарович",10,"2003-01-30","м",15.5,62,null,"Коберник Марина Юрьевна","МБОУ «Средняя общеобразовательная школа №7» Бавлинского муниципального района РТ"]
[22,"Бавлинский",{"$f":"$C$16","v":"Муниципальное бюджетное общеобразовательное учреждение «Средняя общеобразовательная школа №2 с углубленным изучением отдельных предметов» Бавлинского муниципального района Республики Татарстан"},"Салихова","Аделя","Айратовна",11,"2000-12-03","ж",21,65,null,"Жилина Роза Даниловна",{"$f":"$C$16","v":"Муниципальное бюджетное общеобразовательное учреждение «Средняя общеобразовательная школа №2 с углубленным изучением отдельных предметов» Бавлинского муниципального района Республики Татарстан"}]
[23,"Бавлинский",{"$f":"$C$23","v":"Муниципальное бюджетное общеобразовательное учреждение «Александровская средняя общеобразовательная школа» Бавлинского муниципального района РТ "},"Уварова","Елена","Андреевна",11,"2001-07-09","ж",28,65,null,"Гарскова Надежда Петровна",{"$f":"$C$23","v":"Муниципальное бюджетное общеобразовательное учреждение «Александровская средняя общеобразовательная школа» Бавлинского муниципального района РТ "}]
[24,"Бавлинский",{"$f":"$C$21","v":"Муниципальное бюджетное общеобразовательное учреждение «Средняя общеобразовательная школа №3 имени Ю.А.Гагарина» Бавлинского муниципального района РТ"},"Гаязова","Карина","Рафаэловна",11,"2001-08-24","ж",31.5,65,null,"Ахмедова Айгуль Салаватовна",{"$f":"$C$21","v":"Муниципальное бюджетное общеобразовательное учреждение «Средняя общеобразовательная школа №3 имени Ю.А.Гагарина» Бавлинского муниципального района РТ"}]
[25,"Бавлинский",{"$f":"$C$20","v":"МБОУ «Средняя общеобразовательная школа №6» Бавлинского муниципального района РТ"},"Гибадуллин","Равиль","Рамилевич",11,"2002-03-12","м",22.5,65,null,"Аблязизова Римма Раисовна",{"$f":"$C$20","v":"МБОУ «Средняя общеобразовательная школа №6» Бавлинского муниципального района РТ"}]